[Event "1st Turkish League 2017"]
[Site "Konya"]
[Date "2017.07.23"]
[Round "9"]
[White "Baspinar, Lara"]
[Black "Erece, Ece Alkim"]
[Result "1/2-1/2"]
[ECO "D94"]
[WhiteElo "1652"]
[BlackElo "1829"]
[Annotator "NA"]
[PlyCount "139"]
[EventType "team-tourn"]
[EventCountry "TUR"]
[SourceTitle "playchess.com"]
[Source "ChessBase"]
[SourceQuality "1"]
[TimeControl "5400+30"]

1. c4 {[%emt 0:00:30]} Nf6 {[%emt 0:01:00]} 2. Nc3 {[%emt 0:00:30]} g6 {[%emt 0:00:00]} 3. d4 {[%emt 0:00:00]} c5 {[%emt 0:00:00]} 4. e3 {[%emt 0:02:00]} Bg7 {[%emt 0:00:30]} 5. Nf3 {[%emt 0:05:30]} O-O {[%emt 0:00:30]} 6. Be2 {[%emt 0:04:30]} cxd4 {[%emt 0:02:30]} 7. exd4 {[%emt 0:00:00]} d5 {[%emt 0:00:30]} 8. h3 {[%emt 0:03:00]} Nc6 {[%emt 0:00:30]} 9. O-O {[%emt 0:02:30]} dxc4 {[%emt 0:01:30] LiveBook: 103 Games} 10. Bxc4 {[%emt 0:00:30]} Na5 {[%emt 0:02:30]} 11. Bd3 {[%emt 0:01:30]} Be6 {[%emt 0:01:30]} 12. b3 $15 {[%emt 0:11:30]} h6 {[%emt 0:06:30]} 13. Bb2 {[%emt 0:01:30]} Nd5 {[%emt 0:00:30]} 14. Ne4 {[%emt 0:07:30]} b6 {[%emt 0:04:30]} 15. Rc1 {[%emt 0:00:30]} Nb7 {[%emt 0:05:30]} 16. Qd2 {[%emt 0:02:30]} Nd6 {[%emt 0:08:30]} 17. Ng3 {[%emt 0:01:30]} Nf5 {[%emt 0:18:30]} 18. Nxf5 {[%emt 0:08:30]} Bxf5 {[%emt 0:00:30]} 19. Bxf5 {[%emt 0:00:30]} gxf5 {[%emt 0:00:30]} 20. Ne5 {[%emt 0:00:30]} e6 {[%emt 0:01:30]} 21. Ba3 {[%emt 0:06:30]} Re8 {[%emt 0:01:30]} 22. g3 {[%emt 0:12:30]} Qf6 {[%emt 0:02:30]} 23. Rfd1 {[%emt 0:03:30]} f4 {[%emt 0:07:30]} 24. Qe2 {[%emt 0:00:30]} fxg3 {[%emt 0:06:30]} 25. fxg3 {[%emt 0:00:30]} Qg5 {[%emt 0:00:30]} 26. Kh2 {[%emt 0:07:58]} Qe3 {[%emt 0:08:55]} 27. Qxe3 {[%emt 0:06:03]} Nxe3 {[%emt 0:00:34]} 28. Rd3 {[%emt 0:00:20]} Nd5 {[%emt 0:00:35]} 29. Rf3 {[%emt 0:01:47]} f6 {[%emt 0:01:58]} 30. Nc6 {[%emt 0:02:06]} Rac8 {[%emt 0:03:34]} 31. Bd6 {[%emt 0:01:41]} Red8 {[%emt 0:04:25]} 32. Nxd8 {[%emt 0:03:15]} Rxc1 {[%emt 0:00:47]} 33. Nxe6 {[%emt 0:00:22]} Rc2+ {[%emt 0:00:15]} 34. Kg1 {[%emt 0:00:15]} Rxa2 {[%emt 0:00:50]} 35. Nxg7 {[%emt 0:02:47]} Kxg7 {[%emt 0:00:06]} 36. Rf2 {[%emt 0:00:11]} Ra1+ {[%emt 0:02:32]} 37. Kg2 {[%emt 0:00:33]} Rb1 {[%emt 0:00:10]} 38. Rf3 {[%emt 0:00:58]} Rd1 {[%emt 0:00:15]} 39. Bb8 {[%emt 0:01:21]} a5 {[%emt 0:00:58]} 40. g4 {[%emt 0:00:44]} Rxd4 {[%emt 0:00:37]} 41. Kg3 {[%emt 0:00:10]} b5 {[%emt 0:01:29]} 42. Ba7 {[%emt 0:00:11]} Rd1 {[%emt 0:00:44]} 43. Kh4 {[%emt 0:00:53]} Kg6 {[%emt 0:00:45]} 44. Kg3 {[%emt 0:00:22]} b4 {[%emt 0:00:58]} 45. Bc5 {[%emt 0:00:57]} Rc1 {[%emt 0:02:00]} 46. Bf8 {[%emt 0:00:14]} Rc3 {[%emt 0:01:00]} 47. h4 {[%emt 0:00:22]} Rxf3+ {[%emt 0:03:44]} 48. Kxf3 {[%emt 0:00:02]} h5 {[%emt 0:00:07]} 49. Ke4 {[%emt 0:00:49]} Nc3+ {[%emt 0:00:12]} 50. Kf3 {[%emt 0:00:21]} hxg4+ {[%emt 0:00:45]} 51. Kxg4 {[%emt 0:00:02]} f5+ {[%emt 0:00:32]} 52. Kf3 {[%emt 0:00:18]} Na2 {[%emt 0:00:39]} 53. Kf4 {[%emt 0:01:18]} Nc1 {[%emt 0:00:30]} 54. h5+ {[%emt 0:00:00]} Kxh5 {[%emt 0:00:32]} 55. Kxf5 {[%emt 0:00:02]} Nxb3 {[%emt 0:00:00]} 56. Ke4 {[%emt 0:00:00]} Kg5 {[%emt 0:00:25]} 57. Kd3 {[%emt 0:00:12]} Kf4 {[%emt 0:00:19]} 58. Kc4 {[%emt 0:00:00]} Nd2+ {[%emt 0:01:05]} 59. Kb5 {[%emt 0:00:13]} b3 {[%emt 0:00:30]} 60. Bg7 {[%emt 0:00:00]} Nf3 {[%emt 0:00:00]} 61. Bb2 {[%emt 0:00:21]} Ke3 {[%emt 0:00:01]} 62. Kxa5 {[%emt 0:00:19]} Kd3 {[%emt 0:00:07]} 63. Kb4 {[%emt 0:01:01]} Kc2 {[%emt 0:00:06]} 64. Ka3 {[%emt 0:01:02]} Nd2 {[%emt 0:00:17]} 65. Bf6 {[%emt 0:00:00]} Nb1+ {[%emt 0:01:30]} 66. Kb4 {[%emt 0:00:01]} Nd2 {[%emt 0:00:00]} 67. Ka3 {[%emt 0:00:32]} Ne4 {[%emt 0:00:00]} 68. Bb2 {[%emt 0:00:31]} Nc3 {[%emt 0:00:53]} 69. Ba1 {[%emt 0:00:14]} Na2 {[%emt 0:00:43]} 70. Bb2 {[%emt 0:00:55]} 1/2-1/2

[Event "1st Turkish League 2017"]
[Site "Konya"]
[Date "2017.07.23"]
[Round "9"]
[White "Sahin, Hayrun Nisa"]
[Black "Kocyigit, Buse Naz"]
[Result "1/2-1/2"]
[ECO "D13"]
[WhiteElo "1576"]
[BlackElo "1628"]
[Annotator "NA"]
[PlyCount "65"]
[EventType "team-tourn"]
[EventCountry "TUR"]
[SourceTitle "playchess.com"]
[Source "ChessBase"]
[SourceQuality "1"]
[TimeControl "5400+30"]

1. c4 {[%emt 0:00:30]} c6 {[%emt 0:01:00]} 2. g3 {[%emt 0:00:30]} d5 {[%emt 0:00:30]} 3. cxd5 {[%emt 0:00:30]} cxd5 {[%emt 0:00:00]} 4. d4 {[%emt 0:00:00]} Nc6 {[%emt 0:00:00]} 5. Bg2 {[%emt 0:00:00]} e6 {[%emt 0:00:30]} 6. Nf3 {[%emt 0:00:30]} Bd6 {[%emt 0:01:30]} 7. Nc3 {[%emt 0:00:30]} Nf6 {[%emt 0:00:30]} 8. O-O {[%emt 0:04:30]} O-O {[%emt 0:01:30]} 9. b3 {[%emt 0:04:30]} b6 {[%emt 0:05:30]} 10. Bb2 {[%emt 0:01:30]} Bb7 {[%emt 0:00:30]} 11. Rc1 {[%emt 0:02:30]} Rc8 {[%emt 0:00:30]} 12. Re1 {[%emt 0:06:30]} Re8 {[%emt 0:09:30]} 13. e3 {[%emt 0:13:30]} a6 {[%emt 0:08:30]} 14. a3 {[%emt 0:03:30]} Qe7 {[%emt 0:08:30]} 15. Na4 {[%emt 0:16:30]} b5 {[%emt 0:03:30]} 16. Nc5 {[%emt 0:02:30]} Ne4 {[%emt 0:04:30]} 17. b4 {[%emt 0:05:30]} Bb8 {[%emt 0:08:30]} 18. Nd2 {[%emt 0:04:30]} Nd6 {[%emt 0:02:30]} 19. Qe2 {[%emt 0:02:30]} Nc4 {[%emt 0:12:30]} 20. Ndb3 {[%emt 0:04:30]} f5 {[%emt 0:10:30]} 21. f4 {[%emt 0:05:30]} Nd8 {[%emt 0:01:42]} 22. Nd3 {[%emt 0:04:26]} Nf7 {[%emt 0:01:52]} 23. Nbc5 {[%emt 0:00:07]} Nfd6 {[%emt 0:00:52]} 24. Bf1 {[%emt 0:03:45]} Ba7 {[%emt 0:08:12]} 25. h3 {[%emt 0:03:17]} Bb6 {[%emt 0:00:16]} 26. Kh2 {[%emt 0:00:00]} Ra8 {[%emt 0:01:47]} 27. Ra1 {[%emt 0:00:40]} Ra7 {[%emt 0:02:17]} 28. Ra2 {[%emt 0:04:29]} Rea8 {[%emt 0:00:14]} 29. Rea1 {[%emt 0:00:02]} a5 {[%emt 0:02:17]} 30. Bc1 {[%emt 0:00:22]} Ne4 {[%emt 0:01:28]} 31. Qc2 {[%emt 0:02:57]} Bc6 {[%emt 0:01:45]} 32. Bg2 {[%emt 0:03:50]} Qf6 {[%emt 0:01:16]} 33. Ne5 {[%emt 0:00:43]} 1/2-1/2